{"text_format":"1","workbook":"xlsx","n_sheets":5,"sheets":["Start","1. Runde","2. Runde","3. Runde ","Versioninfos"],"not_rendered":{"charts":0,"images":3,"macros":1,"external_links":0,"defined_names":4,"comments":0,"pivot_tables":0},"unopened":[],"bounds":{"document_bytes":16777216,"sheet_cells":100000,"rows_first":2000,"rows_last":500,"rows_between":2000,"halvings":0,"cell_chars":16384,"cell_head_chars":4096},"cells_cut":0,"cells_raw":0,"read":"whole","date_system":"1900"}

{"sheet":"Start","index":0,"n_rows":29,"n_cols":13,"rows_kept":29,"cut":false,"hidden":false,"merged":[[11,7,12,7],[11,11,12,11],[11,0,11,1],[24,2,24,3],[25,2,25,3],[26,2,26,3],[20,5,21,5],[20,2,21,4],[28,2,28,3],[17,3,18,7],[17,8,18,12],[27,2,27,3],[40,0,40,11],[28,0,28,1]]}
[]
[null,null,null,null,null,"2-Stellungs-"]
[null,null,null,null,null,"Gruppenmeisterschaft"]
[null,null,null,null,null,"Junioren 2021"]
[]
[]
[]
[]
[]
[]
[]
["Stellung:",null,"Name + Vorname: ","Lizenz-Nr.:",null,"Name + Vorname:","Lizenz-Nr. :","Auswechselschütze mit einem X bezeichnen",null,"Name + Vorname:","Lizenz-Nr. :","Auswechselschütze mit einem X bezeichnen"]
[]
["Nr.1: liegend:"]
["Nr.2 liegend:"]
["Nr.3 kniend:"]
["Nr.4 kniend:",null,null,null,null,null,null,null,{"$f":"COUNTIF(H14:H17,\"x\")","v":0},null,null,null,{"$f":"COUNTIF(L14:L17,\"x\")","v":0}]
[null,null,null,{"$f":"IF(I17>1+1,\"Achtung Es dürfen nur 2 Schützen pro Runde ausgewechselt werden!\",\" \")","v":" "},null,null,null,null,{"$f":"IF(M17>1+1,\"Achtung Es darf nur 1 Schützen pro Runde ausgewechselt werden!\",\" \")","v":" "}]
[]
[null,null,"Verein:",null,null,"Gruppe Nr. "]
[]
[]
[]
["Gruppenchef/in"]
["Name:"]
["Adresse:"]
["PLZ+Ort"]
["Tel."]
["E-Mail:"]

{"sheet":"1. Runde","index":1,"n_rows":28,"n_cols":37,"rows_kept":28,"cut":false,"hidden":false,"merged":[[20,1,20,3],[20,12,20,15],[27,8,27,13],[22,8,23,14],[18,1,18,3],[19,1,19,3],[19,5,19,10],[15,31,15,34],[8,16,8,17],[15,5,15,10],[15,12,15,15],[11,12,11,15],[19,12,19,15],[14,20,14,22],[15,20,15,22],[18,20,18,22],[19,20,19,22],[10,20,10,22],[11,20,11,22],[20,16,20,17],[22,20,26,25],[4,0,4,1],[4,12,4,13],[4,15,4,16],[7,12,7,15],[4,2,4,11],[5,10,5,17],[5,4,5,7],[7,5,7,10],[23,15,24,17],[26,8,26,13],[24,8,24,13],[25,8,25,13],[11,5,11,10],[8,12,8,15],[16,12,16,15],[16,16,16,17],[8,1,8,3],[8,35,8,36],[11,31,11,34],[15,24,15,29],[12,16,12,17],[12,1,12,3],[12,12,12,15],[14,1,14,3],[15,1,15,3],[10,1,10,3],[11,1,11,3],[25,27,25,32],[26,27,26,32],[27,20,27,25],[27,27,27,32],[8,20,8,22],[8,31,8,34],[11,24,11,29],[12,20,12,22],[12,31,12,34],[19,24,19,29],[19,31,19,34],[20,20,20,22],[20,31,20,34],[4,31,4,32],[22,27,23,33],[23,34,24,36],[24,27,24,32],[12,35,12,36],[20,35,20,36],[4,34,4,35],[5,23,5,26],[5,29,5,36],[7,24,7,29],[7,31,7,34],[4,19,4,20],[4,21,4,30],[7,20,7,22],[16,20,16,22],[16,31,16,34],[16,35,16,36],[3,20,3,36],[3,0,3,17],[22,1,27,6],[16,1,16,3],[6,1,6,3],[7,1,7,3],[6,20,6,22]]}
[null,null,null,null,null,null,null,null,{"$f":"Start!F2","v":"2-Stellungs-"},null,null,null,null,null,null,null,null,null,null,null,null,null,null,null,null,null,null,{"$f":"I1","v":"2-Stellungs-"}]
[null,null,null,null,null,null,null,null,{"$f":"Start!F3","v":"Gruppenmeisterschaft"},null,null,null,null,null,null,null,null,null,null,null,null,null,null,null,null,null,null,{"$f":"I2","v":"Gruppenmeisterschaft"}]
[null,null,null,null,null,null,null,null,{"$f":"Start!F4","v":"Junioren 2021"},null,null,null,null,null,null,null,null,null,null,null,null,null,null,null,null,null,null,{"$f":"I3","v":"Junioren 2021"}]
["Exemplar für den Verband",null,null,null,null,null,null,null,null,null,null,null,null,null,null,null,null,null,null,null,"Exemplar für den Verein"]
["Verein: ",null,{"$f":"Start!C21","v":0},null,null,null,null,null,null,null,null,null,"Runde: ",null,1,"Gruppe Nr.: ",null,{"$f":"Start!F21","v":0},null,"Verein: ",null,{"$f":"C5","v":0},null,null,null,null,null,null,null,null,null,"Runde: ",null,1,"Gruppe Nr.:  ",null,{"$f":"R5","v":0}]
[null,null,null,null,null,null,null,null,null,null,null,null,null,null,null,null,null,null,null,null,null,null,null,{"$f":"E6","v":0}]
[1,"lg",null,null,null,"Name und Vorname",null,null,null,null,null,null,"Lizenz-Nr.",null,null,null,null,"Total",null,1,"lg",null,null,null,"Name und Vorname:",null,null,null,null,null,null,"Lizenz-Nr.:",null,null,null,null,"Total"]
[null,"Kleber-Nr.:",null,null,null,{"$f":"Start!C14","v":0},null,null,null,null,null,null,{"$f":"Start!D14","v":0},null,null,null,null,null,null,null,"Kleber-Nr.:",null,null,null,{"$f":"F8","v":0},null,null,null,null,null,null,{"$f":"M8","v":0}]
[null,null,null,null,null,null,null,null,null,null,null,null,"Resultat:",null,null,null,null,null,null,null,{"$f":"B9","v":0},null,null,null,null,null,null,null,null,null,null,"Resultat:",null,null,null,{"$f":"Q9","v":0}]
[]
[2,"lg",null,null,null,"Name und Vorname",null,null,null,null,null,null,"Lizenz-Nr.",null,null,null,null,"Total",null,2,"lg",null,null,null,"Name und Vorname",null,null,null,null,null,null,"Lizenz-Nr.",null,null,null,null,"Total"]
[null,"Kleber-Nr.:",null,null,null,{"$f":"Start!C15","v":0},null,null,null,null,null,null,{"$f":"Start!D15","v":0},null,null,null,null,null,null,null,"Kleber-Nr.:",null,null,null,{"$f":"F12","v":0},null,null,null,null,null,null,{"$f":"M12","v":0}]
[null,null,null,null,null,null,null,null,null,null,null,null,null,null,null,null,null,null,null,null,{"$f":"B13","v":0},null,null,null,null,null,null,null,null,null,null,null,null,null,null,{"$f":"Q13","v":0}]
[]
[3,"kn",null,null,null,"Name und Vorname",null,null,null,null,null,null,"Lizenz-Nr.",null,null,null,null,"Total",null,3,"kn",null,null,null,"Name und Vorname",null,null,null,null,null,null,"Lizenz-Nr.",null,null,null,null,"Total"]
[null,"Kleber-Nr.:",null,null,null,{"$f":"Start!C16","v":0},null,null,null,null,null,null,{"$f":"Start!D16","v":0},null,null,null,null,null,null,null,"Kleber-Nr.:",null,null,null,{"$f":"F16","v":0},null,null,null,null,null,null,{"$f":"M16","v":0}]
[null,null,null,null,null,null,null,null,null,null,null,null,null,null,null,null,null,null,null,null,{"$f":"B17","v":0},null,null,null,null,null,null,null,null,null,null,null,null,null,null,{"$f":"Q17","v":0}]
[]
[4,"kn",null,null,null,"Name und Vorname",null,null,null,null,null,null,"Lizenz-Nr.",null,null,null,null,"Total",null,4,"kn",null,null,null,"Name und Vorname",null,null,null,null,null,null,"Lizenz-Nr.",null,null,null,null,"Total"]
[null,"Kleber-Nr.:",null,null,null,{"$f":"Start!C17","v":0},null,null,null,null,null,null,{"$f":"Start!D17","v":0},null,null,null,null,null,null,null,"Kleber-Nr.:",null,null,null,{"$f":"F20","v":0},null,null,null,null,null,null,{"$f":"M20","v":0}]
[null,null,null,null,null,null,null,null,null,null,null,null,null,null,null,null,null,null,null,null,{"$f":"B21","v":0},null,null,null,null,null,null,null,null,null,null,null,null,null,null,{"$f":"Q21","v":0}]
[]
[null,"Die aufgeführten Schützen sind lizenzierte Mitglieder unseres Vereins. Sie haben Vorschriftsgemäss geschossen.                      Signatur Gruppenchef/in:                                                                                                                                    ",null,null,null,null,null,null,"Name, Adresse und Tel des Gruppenchefs:  ",null,null,null,null,null,null,null,null,null,null,null,"Die aufgeführten Schützen sind lizenzierte Mitglieder unseres Vereins. Sie haben Vorschriftsgemäss geschossen.                      Signatur Gruppenchef/in:                                                                                                                                    ",null,null,null,null,null,null,"Name, Adresse und Tel des Gruppenchefs:             "]
[null,null,null,null,null,null,null,null,null,null,null,null,null,null,null,{"$f":"SUM(Q9,Q13,Q17,Q21)","v":0},null,null,null,null,null,null,null,null,null,null,null,null,null,null,null,null,null,null,{"$f":"P24","v":0}]
[null,null,null,null,null,null,null,null,{"$f":"Start!C25","v":0},null,null,null,null,null,null,null,null,null,null,null,null,null,null,null,null,null,null,{"$f":"I25","v":0}]
[null,null,null,null,null,null,null,null,{"$f":"Start!C26","v":0},null,null,null,null,null,null,"Gruppenresultat",null,null,null,null,null,null,null,null,null,null,null,{"$f":"I26","v":0},null,null,null,null,null,null,"Gruppenresultat"]
[null,null,null,null,null,null,null,null,{"$f":"Start!C27","v":0},null,null,null,null,null,null,null,null,null,null,null,null,null,null,null,null,null,null,{"$f":"I27","v":0}]
[null,null,null,null,null,null,null,null,{"$f":"Start!C28","v":0},null,null,null,null,null,null,null,null,null,null,null,{"$f":"B28","v":0},null,null,null,null,null,null,{"$f":"I28","v":0}]

{"sheet":"2. Runde","index":2,"n_rows":28,"n_cols":37,"rows_kept":28,"cut":false,"hidden":false,"merged":[[6,1,6,3],[7,1,7,3],[6,20,6,22],[7,20,7,22],[3,0,3,17],[3,20,3,36],[4,0,4,1],[4,2,4,11],[4,12,4,13],[4,15,4,16],[4,19,4,20],[4,21,4,30],[4,31,4,32],[4,34,4,35],[8,35,8,36],[5,4,5,7],[5,10,5,17],[5,23,5,26],[5,29,5,36],[7,31,7,34],[7,5,7,10],[7,12,7,15],[7,24,7,29],[8,1,8,3],[8,12,8,15],[8,16,8,17],[8,20,8,22],[8,31,8,34],[12,35,12,36],[11,5,11,10],[11,12,11,15],[11,24,11,29],[11,31,11,34],[10,1,10,3],[11,1,11,3],[10,20,10,22],[11,20,11,22],[12,1,12,3],[12,12,12,15],[12,16,12,17],[12,20,12,22],[12,31,12,34],[18,1,18,3],[19,1,19,3],[14,1,14,3],[15,1,15,3],[14,20,14,22],[15,20,15,22],[18,20,18,22],[19,20,19,22],[19,5,19,10],[16,35,16,36],[15,5,15,10],[15,12,15,15],[15,24,15,29],[15,31,15,34],[16,1,16,3],[16,12,16,15],[16,16,16,17],[16,20,16,22],[16,31,16,34],[19,12,19,15],[19,24,19,29],[19,31,19,34],[20,1,20,3],[20,12,20,15],[20,16,20,17],[20,20,20,22],[20,31,20,34],[22,1,27,6],[22,8,23,14],[22,20,26,25],[22,27,23,33],[23,15,24,17],[20,35,20,36],[26,8,26,13],[26,27,26,32],[27,8,27,13],[27,20,27,25],[27,27,27,32],[23,34,24,36],[24,8,24,13],[24,27,24,32],[25,8,25,13],[25,27,25,32]]}
[null,null,null,null,null,null,null,null,{"$f":"Start!F2","v":"2-Stellungs-"},null,null,null,null,null,null,null,null,null,null,null,null,null,null,null,null,null,null,{"$f":"I1","v":"2-Stellungs-"}]
[null,null,null,null,null,null,null,null,{"$f":"Start!F3","v":"Gruppenmeisterschaft"},null,null,null,null,null,null,null,null,null,null,null,null,null,null,null,null,null,null,{"$f":"I2","v":"Gruppenmeisterschaft"}]
[null,null,null,null,null,null,null,null,{"$f":"Start!F4","v":"Junioren 2021"},null,null,null,null,null,null,null,null,null,null,null,null,null,null,null,null,null,null,{"$f":"I3","v":"Junioren 2021"}]
["Exemplar für den Verband",null,null,null,null,null,null,null,null,null,null,null,null,null,null,null,null,null,null,null,"Exemplar für den Verein"]
["Verein: ",null,{"$f":"Start!C21","v":0},null,null,null,null,null,null,null,null,null,"Runde: ",null,2,"Gruppe Nr.: ",null,{"$f":"Start!F21","v":0},null,"Verein: ",null,{"$f":"C5","v":0},null,null,null,null,null,null,null,null,null,"Runde: ",null,2,"Gruppe Nr.:  ",null,{"$f":"R5","v":0}]
[null,null,null,null,null,null,null,null,null,null,null,null,null,null,null,null,null,null,null,null,null,null,null,{"$f":"E6","v":0}]
[1,"lg",null,null,null,"Name und Vorname",null,null,null,null,null,null,"Lizenz-Nr.",null,null,null,null,"Total",null,1,"lg",null,null,null,"Name und Vorname:",null,null,null,null,null,null,"Lizenz-Nr.:",null,null,null,null,"Total"]
[null,"Kleber-Nr.:",null,null,null,{"$f":"Start!F14","v":0},null,null,null,null,null,{"$f":"Start!H14","v":0},{"$f":"Start!G14","v":0},null,null,null,null,null,null,null,"Kleber-Nr.:",null,null,null,{"$f":"F8","v":0},null,null,null,null,null,null,{"$f":"M8","v":0}]
[null,null,null,null,null,null,null,null,null,null,null,null,"Resultat:",null,null,null,null,null,null,null,{"$f":"B9","v":0},null,null,null,null,null,null,null,null,null,null,"Resultat:",null,null,null,{"$f":"Q9","v":0}]
[]
[2,"lg",null,null,null,"Name und Vorname",null,null,null,null,null,null,"Lizenz-Nr.",null,null,null,null,"Total",null,2,"lg",null,null,null,"Name und Vorname",null,null,null,null,null,null,"Lizenz-Nr.",null,null,null,null,"Total"]
[null,"Kleber-Nr.:",null,null,null,{"$f":"Start!F15","v":0},null,null,null,null,null,{"$f":"Start!H15","v":0},{"$f":"Start!G15","v":0},null,null,null,null,null,null,null,"Kleber-Nr.:",null,null,null,{"$f":"F12","v":0},null,null,null,null,null,null,{"$f":"M12","v":0}]
[null,null,null,null,null,null,null,null,null,null,null,null,null,null,null,null,null,null,null,null,{"$f":"B13","v":0},null,null,null,null,null,null,null,null,null,null,null,null,null,null,{"$f":"Q13","v":0}]
[]
[3,"kn",null,null,null,"Name und Vorname",null,null,null,null,null,null,"Lizenz-Nr.",null,null,null,null,"Total",null,3,"kn",null,null,null,"Name und Vorname",null,null,null,null,null,null,"Lizenz-Nr.",null,null,null,null,"Total"]
[null,"Kleber-Nr.:",null,null,null,{"$f":"Start!F16","v":0},null,null,null,null,null,{"$f":"Start!H16","v":0},{"$f":"Start!G16","v":0},null,null,null,null,null,null,null,"Kleber-Nr.:",null,null,null,{"$f":"F16","v":0},null,null,null,null,null,null,{"$f":"M16","v":0}]
[null,null,null,null,null,null,null,null,null,null,null,null,null,null,null,null,null,null,null,null,{"$f":"B17","v":0},null,null,null,null,null,null,null,null,null,null,null,null,null,null,{"$f":"Q17","v":0}]
[]
[4,"kn",null,null,null,"Name und Vorname",null,null,null,null,null,null,"Lizenz-Nr.",null,null,null,null,"Total",null,4,"kn",null,null,null,"Name und Vorname",null,null,null,null,null,null,"Lizenz-Nr.",null,null,null,null,"Total"]
[null,"Kleber-Nr.:",null,null,null,{"$f":"Start!F17","v":0},null,null,null,null,null,{"$f":"Start!H17","v":0},{"$f":"Start!G17","v":0},null,null,null,null,null,null,null,"Kleber-Nr.:",null,null,null,{"$f":"F20","v":0},null,null,null,null,null,null,{"$f":"M20","v":0}]
[null,null,null,null,null,null,null,null,null,null,null,null,null,null,null,null,null,null,null,null,{"$f":"B21","v":0},null,null,null,null,null,null,null,null,null,null,null,null,null,null,{"$f":"Q21","v":0}]
[]
[null,"Die aufgeführten Schützen sind lizenzierte Mitglieder unseres Vereins. Sie haben Vorschriftsgemäss geschossen.                      Signatur Gruppenchef/in:                                                                                                                                    ",null,null,null,null,null,null,"Name, Adresse und Tel des Gruppenchefs:  ",null,null,null,null,null,null,null,null,null,null,null,"Die aufgeführten Schützen sind lizenzierte Mitglieder unseres Vereins. Sie haben Vorschriftsgemäss geschossen.                      Signatur Gruppenchef/in:                                                                                                                                    ",null,null,null,null,null,null,"Name, Adresse und Tel des Gruppenchefs:               "]
[null,null,null,null,null,null,null,null,null,null,null,null,null,null,null,{"$f":"SUM(Q9,Q13,Q17,Q21)","v":0},null,null,null,null,null,null,null,null,null,null,null,null,null,null,null,null,null,null,{"$f":"P24","v":0}]
[null,null,null,null,null,null,null,null,{"$f":"Start!C25","v":0},null,null,null,null,null,null,null,null,null,null,null,null,null,null,null,null,null,null,{"$f":"I25","v":0}]
[null,null,null,null,null,null,null,null,{"$f":"Start!C26","v":0},null,null,null,null,null,null,"Gruppenresultat",null,null,null,null,null,null,null,null,null,null,null,{"$f":"I26","v":0},null,null,null,null,null,null,"Gruppenresultat"]
[null,null,null,null,null,null,null,null,{"$f":"Start!C27","v":0},null,null,null,null,null,null,null,null,null,null,null,null,null,null,null,null,null,null,{"$f":"I27","v":0}]
[null,null,null,null,null,null,null,null,{"$f":"Start!C28","v":0},null,null,null,null,null,null,null,null,null,null,null,{"$f":"B28","v":0},null,null,null,null,null,null,{"$f":"I28","v":0}]

{"sheet":"3. Runde ","index":3,"n_rows":28,"n_cols":37,"rows_kept":28,"cut":false,"hidden":false,"merged":[[6,1,6,3],[7,1,7,3],[6,20,6,22],[7,20,7,22],[3,0,3,17],[3,20,3,36],[4,0,4,1],[4,2,4,11],[4,12,4,13],[4,15,4,16],[4,19,4,20],[4,21,4,30],[4,31,4,32],[4,34,4,35],[8,35,8,36],[5,4,5,7],[5,10,5,17],[5,23,5,26],[5,29,5,36],[7,31,7,34],[7,5,7,10],[7,12,7,15],[7,24,7,29],[8,1,8,3],[8,12,8,15],[8,16,8,17],[8,20,8,22],[8,31,8,34],[12,35,12,36],[11,5,11,10],[11,12,11,15],[11,24,11,29],[11,31,11,34],[10,20,10,22],[11,20,11,22],[10,1,10,3],[11,1,11,3],[12,1,12,3],[12,12,12,15],[12,16,12,17],[12,20,12,22],[12,31,12,34],[14,1,14,3],[15,1,15,3],[18,1,18,3],[19,1,19,3],[14,20,14,22],[15,20,15,22],[18,20,18,22],[19,20,19,22],[19,5,19,10],[16,35,16,36],[15,5,15,10],[15,12,15,15],[15,24,15,29],[15,31,15,34],[16,1,16,3],[16,12,16,15],[16,16,16,17],[16,20,16,22],[16,31,16,34],[19,12,19,15],[19,24,19,29],[19,31,19,34],[20,1,20,3],[20,12,20,15],[20,16,20,17],[20,20,20,22],[20,31,20,34],[22,1,27,6],[22,8,23,14],[22,20,26,25],[22,27,23,33],[23,15,24,17],[20,35,20,36],[26,8,26,13],[26,27,26,32],[27,8,27,13],[27,20,27,25],[27,27,27,32],[23,34,24,36],[24,8,24,13],[24,27,24,32],[25,8,25,13],[25,27,25,32]]}
[null,null,null,null,null,null,null,null,{"$f":"Start!F2","v":"2-Stellungs-"},null,null,null,null,null,null,null,null,null,null,null,null,null,null,null,null,null,null,{"$f":"I1","v":"2-Stellungs-"}]
[null,null,null,null,null,null,null,null,{"$f":"Start!F3","v":"Gruppenmeisterschaft"},null,null,null,null,null,null,null,null,null,null,null,null,null,null,null,null,null,null,{"$f":"I2","v":"Gruppenmeisterschaft"}]
[null,null,null,null,null,null,null,null,{"$f":"Start!F4","v":"Junioren 2021"},null,null,null,null,null,null,null,null,null,null,null,null,null,null,null,null,null,null,{"$f":"I3","v":"Junioren 2021"}]
["Exemplar für den Verband",null,null,null,null,null,null,null,null,null,null,null,null,null,null,null,null,null,null,null,"Exemplar für den Verein"]
["Verein: ",null,{"$f":"Start!C21","v":0},null,null,null,null,null,null,null,null,null,"Runde: ",null,3,"Gruppe Nr.: ",null,{"$f":"Start!F21","v":0},null,"Verein: ",null,{"$f":"C5","v":0},null,null,null,null,null,null,null,null,null,"Runde: ",null,3,"Gruppe Nr.:  ",null,{"$f":"R5","v":0}]
[null,null,null,null,null,null,null,null,null,null,null,null,null,null,null,null,null,null,null,null,null,null,null,{"$f":"E6","v":0}]
[1,"lg",null,null,null,"Name und Vorname",null,null,null,null,null,null,"Lizenz-Nr.",null,null,null,null,"Total",null,1,"lg",null,null,null,"Name und Vorname:",null,null,null,null,null,null,"Lizenz-Nr.:",null,null,null,null,"Total"]
[null,"Kleber-Nr.:",null,null,null,{"$f":"Start!J14","v":0},null,null,null,null,null,{"$f":"Start!L14","v":0},{"$f":"Start!K14","v":0},null,null,null,null,null,null,null,"Kleber-Nr.:",null,null,null,{"$f":"F8","v":0},null,null,null,null,null,null,{"$f":"M8","v":0}]
[null,null,null,null,null,null,null,null,null,null,null,null,"Resultat:",null,null,null,null,null,null,null,{"$f":"B9","v":0},null,null,null,null,null,null,null,null,null,null,"Resultat:",null,null,null,{"$f":"Q9","v":0}]
[]
[2,"lg",null,null,null,"Name und Vorname",null,null,null,null,null,null,"Lizenz-Nr.",null,null,null,null,"Total",null,2,"lg",null,null,null,"Name und Vorname",null,null,null,null,null,null,"Lizenz-Nr.",null,null,null,null,"Total"]
[null,"Kleber-Nr.:",null,null,null,{"$f":"Start!J15","v":0},null,null,null,null,null,{"$f":"Start!L15","v":0},{"$f":"Start!K15","v":0},null,null,null,null,null,null,null,"Kleber-Nr.:",null,null,null,{"$f":"F12","v":0},null,null,null,null,null,null,{"$f":"M12","v":0}]
[null,null,null,null,null,null,null,null,null,null,null,null,null,null,null,null,null,null,null,null,{"$f":"B13","v":0},null,null,null,null,null,null,null,null,null,null,null,null,null,null,{"$f":"Q13","v":0}]
[]
[3,"kn",null,null,null,"Name und Vorname",null,null,null,null,null,null,"Lizenz-Nr.",null,null,null,null,"Total",null,3,"kn",null,null,null,"Name und Vorname",null,null,null,null,null,null,"Lizenz-Nr.",null,null,null,null,"Total"]
[null,"Kleber-Nr.:",null,null,null,{"$f":"Start!J16","v":0},null,null,null,null,null,{"$f":"Start!L16","v":0},{"$f":"Start!K16","v":0},null,null,null,null,null,null,null,"Kleber-Nr.:",null,null,null,{"$f":"F16","v":0},null,null,null,null,null,null,{"$f":"M16","v":0}]
[null,null,null,null,null,null,null,null,null,null,null,null,null,null,null,null,null,null,null,null,{"$f":"B17","v":0},null,null,null,null,null,null,null,null,null,null,null,null,null,null,{"$f":"Q17","v":0}]
[]
[4,"kn",null,null,null,"Name und Vorname",null,null,null,null,null,null,"Lizenz-Nr.",null,null,null,null,"Total",null,4,"kn",null,null,null,"Name und Vorname",null,null,null,null,null,null,"Lizenz-Nr.",null,null,null,null,"Total"]
[null,"Kleber-Nr.:",null,null,null,{"$f":"Start!J17","v":0},null,null,null,null,null,{"$f":"Start!L17","v":0},{"$f":"Start!K17","v":0},null,null,null,null,null,null,null,"Kleber-Nr.:",null,null,null,{"$f":"F20","v":0},null,null,null,null,null,null,{"$f":"M20","v":0}]
[null,null,null,null,null,null,null,null,null,null,null,null,null,null,null,null,null,null,null,null,{"$f":"B21","v":0},null,null,null,null,null,null,null,null,null,null,null,null,null,null,{"$f":"Q21","v":0}]
[]
[null,"Die aufgeführten Schützen sind lizenzierte Mitglieder unseres Vereins. Sie haben Vorschriftsgemäss geschossen.                      Signatur Gruppenchef/in:                                                                                                                                    ",null,null,null,null,null,null,"Name, Adresse und Tel des Gruppenchefs:  ",null,null,null,null,null,null,null,null,null,null,null,"Die aufgeführten Schützen sind lizenzierte Mitglieder unseres Vereins. Sie haben Vorschriftsgemäss geschossen.                      Signatur Gruppenchef/in:                                                                                                                                    ",null,null,null,null,null,null,"Name, Adresse und Tel des Gruppenchefs:             "]
[null,null,null,null,null,null,null,null,null,null,null,null,null,null,null,{"$f":"SUM(Q9,Q13,Q17,Q21)","v":0},null,null,null,null,null,null,null,null,null,null,null,null,null,null,null,null,null,null,{"$f":"P24","v":0}]
[null,null,null,null,null,null,null,null,{"$f":"Start!C25","v":0},null,null,null,null,null,null,null,null,null,null,null,null,null,null,null,null,null,null,{"$f":"I25","v":0}]
[null,null,null,null,null,null,null,null,{"$f":"Start!C26","v":0},null,null,null,null,null,null,"Gruppenresultat",null,null,null,null,null,null,null,null,null,null,null,{"$f":"I26","v":0},null,null,null,null,null,null,"Gruppenresultat"]
[null,null,null,null,null,null,null,null,{"$f":"Start!C27","v":0},null,null,null,null,null,null,null,null,null,null,null,null,null,null,null,null,null,null,{"$f":"I27","v":0}]
[null,null,null,null,null,null,null,null,{"$f":"Start!C28","v":0},null,null,null,null,null,null,null,null,null,null,null,{"$f":"B28","v":0},null,null,null,null,null,null,{"$f":"I28","v":0}]

{"sheet":"Versioninfos","index":4,"n_rows":5,"n_cols":1,"rows_kept":5,"cut":false,"hidden":true,"merged":[[3,0,3,6]]}
["Version 2.0"]
[]
["Gruppentotal Zahl rechtsbündig gemacht, damit die korrigierte Zahl links eingetragen werden kann."]
["Scheibennummer Schriftgrösse verkleinert, damit es auch bei 7-Stelligen Scheibennummern die Zahl anzeigt."]
["neues SSV Logo geändert"]